[Event "28th Hit Open-A 2024"]
[Site "Nova Gorica"]
[Date "2024.01.26"]
[Round "1.23"]
[White "Dorokhina, Elizaveta"]
[Black "Zlatanovic, Marcus"]
[Result "1-0"]
[ECO "D00"]
[WhiteElo "1994"]
[BlackElo "1745"]
[Annotator "TA"]
[PlyCount "65"]
[EventDate "2024.01.22"]
[EventType "swiss"]
[EventCountry "SLO"]
[SourceTitle "playchess.com"]
[Source "ChessBase"]
[SourceQuality "1"]
[TimeControl "5400+30"]

{[%evp 11,65,0,0,-9,31,31,47,51,56,58,40,39,31,21,54,23,23,16,45,0,14,22,23,5,20,21,58,63,67,61,87,87,87,70,941,906,1439,790,1260,1240,1239,1216,1182,1010,944,980,940,813,830,788,1439,1429,1736,1526,1748,1720]} 1. d4 {[%emt 0:00:02]} d5 {[%emt 0:01:16]} 2. Bf4 {[%emt 0:01:11]} c5 {[%emt 0:01:33]} 3. e3 {[%emt 0:00:57]} Nc6 {[%emt 0:03:48]} 4. c3 {[%emt 0:01:45]} Nf6 {[%emt 0:03:00]} 5. Nd2 {[%emt 0:00:41]} Bf5 {[%emt 0:17:02]} 6. Ngf3 {[%emt 0:03:01]} e6 {[%emt 0:01:16]} 7. Nh4 {[%emt 0:03:02]} Bg4 {[%emt 0:09:28]} 8. Qb3 {[%emt 0:05:53]} Qc8 {[%emt 0:08:26]} 9. h3 {[%emt 0:02:59] White is slightly better.} Bh5 {[%emt 0:00:39]} 10. g4 {[%emt 0:04:53]} Bg6 {[%emt 0:00:34]} 11. Nxg6 {[%emt 0:00:20]} hxg6 {[%emt 0:00:21]} 12. Bg2 {[%emt 0:00:10]} Be7 {[%emt 0:08:26]} 13. O-O {[%emt 0:18:07]} O-O {[%emt 0:04:21]} 14. Bg3 {[%emt 0:08:09]} g5 {[%emt 0:22:00]} 15. f4 {[%emt 0:05:50]} gxf4 {[%emt 0:02:07]} 16. Bxf4 {[%emt 0:00:19]} Qd7 {[%emt 0:05:49]} 17. Qd1 {[%emt 0:01:49]} Rac8 {[%emt 0:01:56]} 18. g5 {[%emt 0:01:50]} Nh7 {[%emt 0:04:14]} 19. Qg4 {[%emt 0:01:49]} Bd6 {[%emt 0:01:17]} 20. h4 {[%emt 0:02:28]} Bxf4 {[%emt 0:00:22]} 21. Rxf4 {[%emt 0:00:21]} Qe7 {[%emt 0:01:07]} 22. Raf1 {[%emt 0:01:12] White is more active.} (22. Rd1 {simplifies} g6 23. Qg3 Qd6 24. dxc5 Qxc5 25. Nb3) 22... e5 $2 {[%emt 0:01:49][%mdl 8192] [#] Black cannot hold the game after this.} (22... f5 $14 23. Qh5 c4) 23. Rxf7 $3 $18 {[%emt 0:00:38][%mdl 512] White is clearly winning.} Qd6 {[%emt 0:00:37]} (23... Rxf7 24. Rxf7) 24. Rd7 {[%emt 0:00:37]} Rxf1+ {[%emt 0:00:23]} 25. Nxf1 {[%emt 0:00:08]} Qg6 {[%emt 0:00:28]} 26. Bxd5+ {[%emt 0:00:13]} Kh8 {[%emt 0:00:12] [#]} 27. Rxg7 $3 {[%emt 0:04:39][%mdl 512]} Qxg7 {[%emt 0:00:20]} 28. Qxc8+ {[%emt 0:00:07]} Nf8 {[%emt 0:00:05]} 29. Ng3 {[%emt 0:02:21] Strongly threatening Nh5.} Ne7 {[%emt 0:01:00]} 30. Qxc5 {[%emt 0:02:16]} Qh7 {[%emt 0:00:04]} 31. Be4 {[%emt 0:01:55]} Qxh4 {[%emt 0:00:59]} 32. Qxe5+ {[%emt 0:00:16]} Kg8 {[%emt 0:00:07]} 33. Kg2 {[%emt 0:01:20] Weighted Error Value: White=0.14 (very precise) /Black=0.20 (precise) .  Loses game:     	---       	Black=1      Inaccurate:     	White=2     	Black=6      OK:         	White=4     	Black=3      Brilliant:      	White=1     	---} 1-0

[Event "28th Hit Open-A 2024"]
[Site "Nova Gorica"]
[Date "2024.01.26"]
[Round "1.24"]
[White "Barbir, Petar"]
[Black "Pirs, Matjaz"]
[Result "0-1"]
[ECO "C47"]
[WhiteElo "1738"]
[BlackElo "1965"]
[Annotator "TA"]
[PlyCount "78"]
[EventDate "2024.01.22"]
[EventType "swiss"]
[EventCountry "SLO"]
[SourceTitle "playchess.com"]
[Source "ChessBase"]
[SourceQuality "1"]
[TimeControl "5400+30"]

{[%evp 10,78,0,-33,-25,-30,-27,-28,-16,-30,-12,-13,-14,-23,-9,-10,-11,-11,-10,-38,23,7,16,-12,-20,-17,-20,-27,0,0,-8,-5,-8,-14,-17,-14,-10,-20,-13,-18,-15,-14,-14,-14,-14,-17,-19,-15,-7,-6,0,0,0,0,14,0,0,0,0,-13,-4,-118,-119,-110,-107,-178,-179,-332,-262,-29990,-29991]} 1. e4 {[%emt 0:00:04]} e5 {[%emt 0:00:20]} 2. Nf3 {[%emt 0:00:09]} Nf6 {[%emt 0:00:45]} 3. Nc3 {[%emt 0:00:15]} Nc6 {[%emt 0:00:18]} 4. g3 {[%emt 0:00:07]} Bc5 {[%emt 0:07:17]} 5. Bg2 {[%emt 0:00:11]} d6 {[%emt 0:00:11]} 6. h3 {[%emt 0:02:27]} O-O {[%emt 0:01:10]} 7. O-O {[%emt 0:00:09]} h6 {[%emt 0:00:37]} 8. Kh2 {[%emt 0:01:46]} Be6 {[%emt 0:00:53] Black has an edge.} 9. d3 {[%emt 0:02:11]} d5 {[%emt 0:07:42]} 10. exd5 {[%emt 0:04:47]} Nxd5 {[%emt 0:00:27]} 11. Qe2 {[%emt 0:04:33]} f6 {[%emt 0:13:26]} 12. Ne4 {[%emt 0:07:47]} Bb6 {[%emt 0:01:48]} 13. c4 {[%emt 0:02:15][%cal Bc2c4,Bc4c5,Bc5b6][%mdl 32]} Nde7 {[%emt 0:21:58]} 14. c5 {[%emt 0:00:52]} f5 {[%emt 0:00:24]} ({Better is} 14... Ba5 $15) 15. cxb6 {[%emt 0:02:58]} fxe4 {[%emt 0:00:10]} 16. bxc7 {[%emt 0:01:31]} (16. dxe4 {simplifies} axb6 17. b3 Qe8 18. Qb2) 16... Qxd3 {[%emt 0:03:14]} 17. Qxd3 {[%emt 0:07:12]} exd3 {[%emt 0:00:05]} 18. Be3 {[%emt 0:00:33]} Bd5 {[%emt 0:01:45]} 19. Ne1 {[%emt 0:00:54]} e4 {[%emt 0:04:00]} 20. f3 {[%emt 0:08:48]} (20. Rd1 {keeps more tension.} Rac8 21. f3 exf3 22. Bxf3 Bxa2 23. Bf4) 20... exf3 {[%emt 0:01:20]} 21. Bxf3 {[%emt 0:01:02]} Bxf3 {[%emt 0:00:48]} 22. Rxf3 {[%emt 0:00:57]} Rxf3 {[%emt 0:00:57]} 23. Nxf3 {[%emt 0:00:06]} Nd5 {[%emt 0:03:10][%csl LRc7,LRe3]} 24. Bf4 {[%emt 0:01:43]} Nxf4 {[%emt 0:00:34]} 25. gxf4 $11 {[%emt 0:00:08][%mdl 4096] Endgame. KRN-KRN} Rc8 {[%emt 0:00:17]} 26. Rd1 {[%emt 0:01:32]} Rxc7 {[%emt 0:00:12]} 27. Rxd3 {[%emt 0:00:07]} Nb4 {[%emt 0:00:31]} 28. Rd8+ {[%emt 0:01:00]} Kh7 {[%emt 0:00:06]} 29. a3 {[%emt 0:03:50]} Nc2 {[%emt 0:01:02]} 30. Rd3 {[%emt 0:05:01]} b5 {[%emt 0:03:46]} 31. Kg2 {[%emt 0:02:00]} a5 {[%emt 0:02:58]} 32. Kf2 {[%emt 0:02:09]} a4 {[%emt 0:01:09]} 33. Ke2 {[%emt 0:00:40]} b4 {[%emt 0:00:37]} 34. Kd2 {[%emt 0:03:40]} b3 {[%emt 0:01:03][%cal Oc2a3] And now ...Nxa3! would win.} 35. Rc3 {[%emt 0:10:49] [#]} (35. Rd5 $11 {keeps the balance.}) 35... Rd7+ $1 $17 {[%emt 0:02:11]} 36. Rd3 {[%emt 0:00:07]} Rf7 {[%emt 0:00:48]} 37. Nd4 {[%emt 0:00:37]} (37. Ke2 $17) 37... Rxf4 $19 {[%emt 0:00:36]} 38. Nxc2 {[%emt 0:00:10]} (38. Nxb3 axb3 39. Rxb3 Rf2+ (39... Nd4 $2 40. Rb4 $19) 40. Kd1) 38... Rf2+ {[%emt 0:00:14]} ({Not} 38... bxc2 39. Kxc2 Kg6 40. Rg3+ Kf6 41. b3 $11) 39. Kc3 $2 {[%emt 0:00:07] [#]} (39. Kd1 $19 Rxc2 40. Rd4) 39... bxc2 {[%emt 0:00:14] Weighted Error Value: White=0.44/Black=0.07 (flawless) .  Mistake:       	White=4     	Black=1      Inaccurate:     	White=2     	Black=1      OK:         	White=10    	Black=12     Best:        	---       	Black=3      Strong:       	---       	Black=1} (39... Rxc2+ $2 40. Kb4 Rxb2 41. Kxa4 $17) 0-1

[Event "28th Hit Open-A 2024"]
[Site "Nova Gorica"]
[Date "2024.01.26"]
[Round "1.25"]
[White "Cziko, Eduard-Carol"]
[Black "Vicic, Mark"]
[Result "1/2-1/2"]
[ECO "B13"]
[WhiteElo "1946"]
[BlackElo "1729"]
[Annotator "TA"]
[PlyCount "57"]
[EventDate "2024.01.22"]
[EventType "swiss"]
[EventCountry "SLO"]
[SourceTitle "playchess.com"]
[Source "ChessBase"]
[SourceQuality "1"]
[TimeControl "5400+30"]

{[%evp 19,57,34,31,31,35,10,32,28,27,26,29,18,49,-18,-22,-17,-10,-15,-18,-18,-25,-24,-29,-29,-29,-37,-49,-51,-44,-96,-90,-111,-15,-12,-8,-9,-10,-18,-19,-61]} 1. e4 {[%emt 0:00:04]} c6 {[%emt 0:00:07]} 2. d4 {[%emt 0:00:08]} d5 {[%emt 0:00:06]} 3. exd5 {[%emt 0:00:04]} cxd5 {[%emt 0:00:07]} 4. Bd3 {[%emt 0:00:03]} Nc6 {[%emt 0:00:13]} 5. c3 {[%emt 0:00:04]} Nf6 {[%emt 0:00:08]} 6. Bf4 {[%emt 0:00:08]} Bg4 {[%emt 0:00:27]} 7. Qb3 {[%emt 0:00:05]} Qd7 {[%emt 0:00:50]} 8. Nd2 {[%emt 0:00:15]} e6 {[%emt 0:00:13]} 9. Ngf3 {[%emt 0:00:21]} Bd6 {[%emt 0:00:59]} 10. Bxd6 {[%emt 0:01:44]} Qxd6 {[%emt 0:00:02]} 11. O-O {[%emt 0:00:17]} O-O {[%emt 0:00:20]} 12. Rae1 {[%emt 0:00:54]} Qc7 {[%emt 0:00:24]} 13. a3 {[%emt 0:02:43] White is slightly better.} Rac8 {[%emt 0:01:10]} 14. Ne5 {[%emt 0:03:08]} Bh5 {[%emt 0:02:28]} 15. Ndf3 {[%emt 0:03:23]} Nd7 {[%emt 0:05:06]} 16. Nxc6 {[%emt 0:13:13]} (16. Nxd7 $14 Qxd7 17. Re3) 16... bxc6 $11 {[%emt 0:00:26]} 17. Ne5 {[%emt 0:09:05]} c5 {[%emt 0:02:27] [#] White must now prevent ...c4.} 18. Nxd7 {[%emt 0:09:15]} Qxd7 {[%emt 0:00:40]} 19. dxc5 {[%emt 0:02:52]} Rxc5 {[%emt 0:00:58]} 20. Qc2 {[%emt 0:00:52]} Bg6 {[%emt 0:00:51]} 21. Bxg6 {[%emt 0:01:30]} hxg6 {[%emt 0:00:04]} 22. Qd2 {[%emt 0:01:35]} Rb8 {[%emt 0:04:33]} 23. h4 {[%emt 0:10:53]} Qa4 {[%emt 0:03:12]} 24. h5 {[%emt 0:17:59]} gxh5 $17 {[%emt 0:01:00]} 25. Re5 {[%emt 0:06:46]} Rc4 {[%emt 0:05:55]} (25... Qg4 $17 26. f3 Qg6) 26. Rxh5 $11 {[%emt 0:03:10] The position is equal.} Rh4 {[%emt 0:01:17]} 27. Rxh4 {[%emt 0:01:31]} Qxh4 {[%emt 0:00:02]} 28. g3 {[%emt 0:00:12]} Qc4 {[%emt 0:05:31]} 29. Rb1 {[%emt 0:08:31] Weighted Error Value: White=0.11 (very precise) /Black=0.17 (very precise) .  Mistake:       	White=2     	Black=1      Inaccurate:     	White=1     	Black=1      OK:         	White=6     	Black=3      Best:        	White=1     	Black=1} 1/2-1/2

[Event "28th Hit Open-A 2024"]
[Site "Nova Gorica"]
[Date "2024.01.26"]
[Round "1.26"]
[White "Petrosino, Germano"]
[Black "Labrovic, Jakov"]
[Result "1-0"]
[ECO "E70"]
[WhiteElo "1715"]
[BlackElo "1925"]
[Annotator "NA RC"]
[PlyCount "47"]
[EventDate "2024.01.22"]
[EventType "swiss"]
[EventCountry "SLO"]
[SourceTitle "playchess.com"]
[Source "ChessBase"]
[SourceQuality "1"]
[TimeControl "5400+30"]

1. d4 {[%emt 0:00:01]} Nf6 {[%emt 0:00:12]} 2. c4 {[%emt 0:00:07]} e6 {[%emt 0:00:15]} 3. Nc3 {[%emt 0:00:08]} c5 {[%emt 0:00:06]} 4. d5 {[%emt 0:00:16]} d6 {[%emt 0:00:18]} 5. e4 {[%emt 0:00:17]} g6 {[%emt 0:00:14]} 6. Bd3 {[%emt 0:02:16]} Bg7 {[%emt 0:00:19]} 7. Nge2 {[%emt 0:01:38]} exd5 {[%emt 0:00:33]} 8. exd5 {[%emt 0:00:12]} O-O {[%emt 0:00:17]} 9. O-O {[%emt 0:00:46]} Ng4 {[%emt 0:01:53]} 10. Bf4 {[%emt 0:05:51]} Re8 {[%emt 0:01:05]} 11. h3 {[%emt 0:03:36]} Ne5 {[%emt 0:00:15]} 12. Qd2 {[%emt 0:02:36]} Na6 {[%emt 0:01:46]} 13. a3 {[%emt 0:00:30]} Nc7 {[%emt 0:00:14]} 14. Ng3 {[%emt 0:02:28]} a6 {[%emt 0:07:42]} 15. Rfe1 {[%emt 0:09:02]} b5 {[%emt 0:03:53]} 16. cxb5 {[%emt 0:01:36]} axb5 {[%emt 0:00:16]} 17. Bxb5 {[%emt 0:05:06]} Nxb5 {[%emt 0:01:16]} 18. Nxb5 {[%emt 0:00:20]} Qb6 {[%emt 0:01:12]} 19. Nc3 {[%emt 0:01:54]} Ba6 {[%emt 0:00:25]} 20. Bxe5 {[%emt 0:01:47]} Bxe5 {[%emt 0:00:48]} 21. Nge4 {[%emt 0:02:52]} Reb8 {[%emt 0:10:22]} 22. Rab1 {[%emt 0:01:04]} Bc8 {[%emt 0:02:29]} 23. Qh6 {[%emt 0:02:17]} Bg7 {[%emt 0:00:27]} 24. Nf6+ {[%emt 0:00:59]} 1-0

[Event "28th Hit Open-A 2024"]
[Site "Nova Gorica"]
[Date "2024.01.26"]
[Round "1.27"]
[White "Privitera, Franco"]
[Black "Bajec, Borut"]
[Result "1-0"]
[ECO "E07"]
[WhiteElo "1919"]
[BlackElo "1703"]
[Annotator "NA RC"]
[PlyCount "95"]
[EventDate "2024.01.22"]
[EventType "swiss"]
[EventCountry "SLO"]
[SourceTitle "playchess.com"]
[Source "ChessBase"]
[SourceQuality "1"]
[TimeControl "5400+30"]

1. d4 {[%emt 0:00:07]} d5 {[%emt 0:00:39]} 2. Nf3 {[%emt 0:00:20]} Nf6 {[%emt 0:00:49]} 3. c4 {[%emt 0:00:18]} e6 {[%emt 0:00:41]} 4. g3 {[%emt 0:00:29]} Be7 {[%emt 0:00:57]} 5. Bg2 {[%emt 0:00:12]} O-O {[%emt 0:01:04]} 6. O-O {[%emt 0:00:23]} Nbd7 {[%emt 0:02:11]} 7. cxd5 {[%emt 0:03:47]} exd5 {[%emt 0:00:52]} 8. b3 {[%emt 0:01:13]} Ne4 {[%emt 0:04:36]} 9. Bb2 {[%emt 0:01:48]} c6 {[%emt 0:12:43]} 10. Nfd2 {[%emt 0:03:44]} Ndf6 {[%emt 0:01:19]} 11. Nc3 {[%emt 0:01:31]} Bf5 {[%emt 0:09:14]} 12. f3 {[%emt 0:09:27]} Nxd2 {[%emt 0:08:33]} 13. Qxd2 {[%emt 0:00:16]} Qd7 {[%emt 0:00:55]} 14. Rfe1 {[%emt 0:06:50]} Rfe8 {[%emt 0:05:04]} 15. Rad1 {[%emt 0:00:33]} Rad8 {[%emt 0:00:39]} 16. e4 {[%emt 0:07:11]} dxe4 {[%emt 0:00:18]} 17. fxe4 {[%emt 0:00:11]} Bg4 {[%emt 0:00:23]} 18. Ne2 {[%emt 0:01:19]} h6 {[%emt 0:08:02]} 19. Rc1 {[%emt 0:05:05]} Nh5 {[%emt 0:04:54]} 20. Qa5 {[%emt 0:18:04]} Bg5 {[%emt 0:01:54]} 21. Rcd1 {[%emt 0:00:51]} Be3+ {[%emt 0:04:36]} 22. Kh1 {[%emt 0:01:24]} Bf2 {[%emt 0:00:27]} 23. Ng1 {[%emt 0:05:40]} Bxe1 {[%emt 0:08:16]} 24. Rxe1 {[%emt 0:00:00]} Nf6 {[%emt 0:00:31]} 25. h3 {[%emt 0:03:04]} Be6 {[%emt 0:02:05]} 26. g4 {[%emt 0:02:02]} Bd5 {[%emt 0:02:03]} 27. exd5 {[%emt 0:01:07]} Nxd5 {[%emt 0:00:31]} 28. Nf3 {[%emt 0:01:40]} Nf4 {[%emt 0:01:49]} 29. Bf1 {[%emt 0:01:49]} Rxe1 {[%emt 0:01:17]} 30. Qxe1 {[%emt 0:00:17]} Qd5 {[%emt 0:00:07]} 31. Qe3 {[%emt 0:01:52]} g5 {[%emt 0:00:44]} 32. Bc4 {[%emt 0:01:01]} Qd6 {[%emt 0:00:47]} 33. Ne5 {[%emt 0:00:40]} Nd5 {[%emt 0:01:03]} 34. Qe4 {[%emt 0:01:56]} Re8 {[%emt 0:00:36]} 35. Qf5 {[%emt 0:01:12]} Re7 {[%emt 0:00:37]} 36. a4 {[%emt 0:01:35]} a6 {[%emt 0:00:14]} 37. Bd3 {[%emt 0:03:59]} Nf6 {[%emt 0:00:56]} 38. Ba3 {[%emt 0:04:25]} Qd5+ {[%emt 0:01:02]} 39. Kh2 {[%emt 0:00:25]} Re6 {[%emt 0:00:33]} 40. Bc4 {[%emt 0:00:55]} Rxe5 {[%emt 0:00:41]} 41. dxe5 {[%emt 0:01:55]} Qd2+ {[%emt 0:00:17]} 42. Kh1 {[%emt 0:01:05]} Qe1+ {[%emt 0:00:29]} 43. Kg2 {[%emt 0:01:35]} Nd5 {[%emt 0:01:36]} 44. Qc8+ {[%emt 0:00:29]} Kg7 {[%emt 0:00:19]} 45. Bf8+ {[%emt 0:00:27]} Kh7 {[%emt 0:01:21]} 46. Bd3+ {[%emt 0:00:15]} f5 {[%emt 0:00:12]} 47. Bxf5+ {[%emt 0:00:32]} Kg8 {[%emt 0:00:12]} 48. Bb4+ {[%emt 0:00:08]} 1-0

[Event "28th Hit Open-A 2024"]
[Site "Nova Gorica"]
[Date "2024.01.26"]
[Round "1.28"]
[White "Guid, Taja"]
[Black "Orsatti, Marcello"]
[Result "0-1"]
[ECO "B31"]
[WhiteElo "1698"]
[BlackElo "1918"]
[Annotator "RC"]
[PlyCount "144"]
[EventDate "2024.01.22"]
[EventType "swiss"]
[EventCountry "SLO"]
[SourceTitle "playchess.com"]
[Source "ChessBase"]
[SourceQuality "1"]
[TimeControl "5400+30"]

1. e4 {[%emt 0:00:01]} c5 {[%emt 0:00:15]} 2. Nc3 {[%emt 0:00:08]} Nc6 {[%emt 0:00:11]} 3. Bb5 {[%emt 0:00:07]} g6 {[%emt 0:00:32]} 4. Nf3 {[%emt 0:01:49]} Bg7 {[%emt 0:00:08]} 5. Bxc6 {[%emt 0:01:27]} bxc6 {[%emt 0:00:10]} 6. O-O {[%emt 0:00:30]} Nf6 {[%emt 0:00:53]} 7. Re1 {[%emt 0:02:30]} O-O {[%emt 0:00:19]} 8. e5 {[%emt 0:01:50]} Nd5 {[%emt 0:00:30]} 9. Nxd5 {[%emt 0:00:30]} cxd5 {[%emt 0:00:30]} 10. d4 {[%emt 0:00:30]} cxd4 {[%emt 0:00:30]} 11. Qxd4 {[%emt 0:00:30]} e6 {[%emt 0:00:30]} 12. Bf4 {[%emt 0:00:30]} d6 {[%emt 0:00:30]} 13. Rad1 {[%emt 0:00:30]} Qa5 {[%emt 0:00:30]} 14. a3 {[%emt 0:00:30]} Rb8 {[%emt 0:00:30]} 15. Bd2 {[%emt 0:00:30]} dxe5 {[%emt 0:00:30]} 16. Bxa5 {[%emt 0:00:30]} exd4 {[%emt 0:00:30]} 17. Bb4 {[%emt 0:47:38]} Re8 {[%emt 0:35:04]} 18. Nxd4 {[%emt 0:00:23]} Bd7 {[%emt 0:00:49]} 19. f4 {[%emt 0:02:48]} Rec8 {[%emt 0:01:06]} 20. Bc3 {[%emt 0:03:39]} Rc4 {[%emt 0:02:50]} 21. Rd3 {[%emt 0:02:53]} Rbc8 {[%emt 0:00:39]} 22. Re2 {[%emt 0:11:27]} Bf8 {[%emt 0:05:16]} 23. Be1 {[%emt 0:03:51]} Bg7 {[%emt 0:05:37]} 24. c3 {[%emt 0:00:27]} R4c7 {[%emt 0:03:18]} 25. Rdd2 {[%emt 0:03:17]} a5 {[%emt 0:02:15]} 26. Bf2 {[%emt 0:00:33]} a4 {[%emt 0:00:37]} 27. Nc2 {[%emt 0:00:30]} Bb5 28. Re1 {[%emt 0:00:30]} Bc4 {[%emt 0:01:00]} 29. Nb4 {[%emt 0:00:30]} Bf8 {[%emt 0:00:30]} 30. Bd4 {[%emt 0:00:30]} Bc5 {[%emt 0:00:30]} 31. Bxc5 {[%emt 0:00:30]} Rxc5 {[%emt 0:00:30]} 32. Kf2 {[%emt 0:01:34]} R5c7 {[%emt 0:09:32]} 33. Re3 {[%emt 0:01:23]} h5 {[%emt 0:00:41]} 34. g3 {[%emt 0:00:21]} Kg7 {[%emt 0:00:07]} 35. h3 {[%emt 0:00:21]} Rd7 {[%emt 0:01:18]} 36. Re1 {[%emt 0:01:11]} Rd6 {[%emt 0:00:51]} 37. Rd4 {[%emt 0:00:39]} Bb3 {[%emt 0:00:35]} 38. Re2 {[%emt 0:03:28]} Bc4 {[%emt 0:01:13]} 39. Re1 {[%emt 0:00:08]} Rcd8 {[%emt 0:00:52]} 40. Red1 {[%emt 0:00:27]} f6 {[%emt 0:00:49]} 41. Re1 {[%emt 0:00:21]} Kf7 {[%emt 0:00:21]} 42. Kg2 {[%emt 0:01:52]} Re8 {[%emt 0:00:29]} 43. g4 {[%emt 0:00:58]} hxg4 {[%emt 0:01:09]} 44. hxg4 {[%emt 0:00:01]} e5 {[%emt 0:00:34]} 45. fxe5 {[%emt 0:00:30]} fxe5 {[%emt 0:00:30]} 46. Rd2 {[%emt 0:00:00]} Kf6 {[%emt 0:01:35]} 47. Kg3 {[%emt 0:00:35]} Kg5 {[%emt 0:02:08]} 48. Nc2 {[%emt 0:02:05]} Rf6 {[%emt 0:02:10]} 49. Ne3 {[%emt 0:01:00]} Rf4 {[%emt 0:01:48]} 50. Rg2 {[%emt 0:01:45]} Bb3 {[%emt 0:01:14]} 51. Kh2 {[%emt 0:00:19]} d4 {[%emt 0:01:30]} 52. cxd4 {[%emt 0:02:01]} exd4 {[%emt 0:00:13]} 53. Nc2 {[%emt 0:00:29]} Rxe1 {[%emt 0:06:03]} 54. Nxe1 {[%emt 0:00:01]} Bd5 {[%emt 0:02:04]} 55. Rd2 {[%emt 0:01:24]} Kxg4 {[%emt 0:01:18]} 56. Nc2 {[%emt 0:00:08]} Kf3 {[%emt 0:01:38]} 57. Rg2 {[%emt 0:02:48]} d3 {[%emt 0:01:26]} 58. Ne1+ {[%emt 0:00:41]} Ke4 {[%emt 0:00:45]} 59. Rd2 {[%emt 0:00:30]} Bc4 {[%emt 0:01:01]} 60. Kg3 {[%emt 0:00:40]} Rf1 {[%emt 0:01:11]} 61. Ng2 {[%emt 0:00:15]} Rc1 {[%emt 0:01:14]} 62. Rf2 {[%emt 0:00:47]} g5 {[%emt 0:00:36]} 63. Kg4 {[%emt 0:00:36]} Rc2 {[%emt 0:00:20]} 64. Kg3 {[%emt 0:00:38]} Rxf2 {[%emt 0:00:46]} 65. Kxf2 {[%emt 0:00:02]} d2 {[%emt 0:00:34]} 66. Ne3 {[%emt 0:00:03]} Bb3 {[%emt 0:00:12]} 67. Ke2 {[%emt 0:00:18]} d1=Q+ {[%emt 0:00:08]} 68. Nxd1 {[%emt 0:00:07]} Bxd1+ {[%emt 0:00:21]} 69. Kxd1 {[%emt 0:00:02]} Kd3 {[%emt 0:00:25]} 70. Kc1 {[%emt 0:01:06]} g4 {[%emt 0:00:14]} 71. b4 {[%emt 0:00:07]} axb3 {[%emt 0:00:33]} 72. a4 {[%emt 0:00:03]} Kc4 {[%emt 0:00:14]} 0-1

[Event "28th Hit Open-A 2024"]
[Site "Nova Gorica"]
[Date "2024.01.26"]
[Round "1.29"]
[White "Capaliku, Aleks"]
[Black "Gratton, Damjan"]
[Result "1-0"]
[ECO "B09"]
[WhiteElo "1913"]
[BlackElo "1691"]
[Annotator "RC"]
[PlyCount "105"]
[EventDate "2024.01.22"]
[EventType "swiss"]
[EventCountry "SLO"]
[SourceTitle "playchess.com"]
[Source "ChessBase"]
[SourceQuality "1"]
[TimeControl "5400+30"]

1. f4 {[%emt 0:00:05]} d6 {[%emt 0:00:55]} 2. e4 {[%emt 0:00:36]} Nf6 {[%emt 0:00:52]} 3. Nc3 {[%emt 0:00:19]} c6 {[%emt 0:01:05]} 4. d4 {[%emt 0:00:47]} g6 {[%emt 0:01:05]} 5. Nf3 {[%emt 0:00:13]} Bg7 {[%emt 0:00:43]} 6. Be2 {[%emt 0:01:27]} Qa5 {[%emt 0:00:38]} 7. O-O {[%emt 0:01:38]} O-O {[%emt 0:01:09]} 8. h3 {[%emt 0:05:08]} Nbd7 {[%emt 0:04:06]} 9. e5 {[%emt 0:06:29]} Ne8 {[%emt 0:04:10]} 10. Ne4 {[%emt 0:06:47]} f5 {[%emt 0:03:37]} 11. Neg5 {[%emt 0:04:09]} Nb8 {[%emt 0:02:50]} 12. h4 {[%emt 0:06:03]} h6 {[%emt 0:02:22]} 13. Nh3 {[%emt 0:01:10]} Be6 {[%emt 0:01:06]} 14. c4 {[%emt 0:02:30]} Nd7 {[%emt 0:04:38]} 15. Nf2 {[%emt 0:02:11]} Rd8 {[%emt 0:04:26]} 16. Bd2 {[%emt 0:06:14]} Qc7 {[%emt 0:04:46]} 17. h5 {[%emt 0:15:00]} Bf7 {[%emt 0:03:49]} 18. hxg6 {[%emt 0:01:31]} Bxg6 {[%emt 0:00:28]} 19. Nh4 {[%emt 0:00:21]} Bh7 {[%emt 0:03:27]} 20. Bh5 {[%emt 0:03:15]} e6 {[%emt 0:06:43]} 21. Qe2 {[%emt 0:06:22]} Nb6 {[%emt 0:01:46]} 22. exd6 {[%emt 0:04:31]} Qd7 {[%emt 0:02:47]} 23. c5 {[%emt 0:06:35]} Nd5 {[%emt 0:00:51]} 24. Bxe8 {[%emt 0:01:42]} Qxe8 {[%emt 0:01:43]} 25. Nf3 {[%emt 0:01:09]} Kh8 {[%emt 0:06:26]} 26. Rae1 {[%emt 0:03:05]} Rf6 {[%emt 0:03:16]} 27. Ne5 {[%emt 0:00:02]} Bg6 {[%emt 0:01:50]} 28. Qf3 {[%emt 0:03:41]} Kh7 {[%emt 0:04:24]} 29. Qh3 {[%emt 0:00:31]} b6 {[%emt 0:01:12]} 30. b4 {[%emt 0:01:25]} Rf8 {[%emt 0:03:26]} 31. d7 {[%emt 0:02:49]} Rxd7 {[%emt 0:01:35]} 32. Nxd7 {[%emt 0:00:03]} Qxd7 {[%emt 0:00:16]} 33. Qd3 {[%emt 0:00:20]} Rd8 {[%emt 0:01:33]} 34. Nd1 {[%emt 0:00:54]} Nf6 {[%emt 0:02:37]} 35. Bc3 {[%emt 0:03:08]} Ne4 {[%emt 0:00:38]} 36. Bb2 {[%emt 0:00:35]} Qd5 {[%emt 0:03:28]} 37. Nf2 {[%emt 0:01:37]} Qxa2 {[%emt 0:01:00]} 38. Re2 {[%emt 0:02:20]} Qd5 {[%emt 0:00:52]} 39. Ra1 {[%emt 0:01:37]} Rd7 {[%emt 0:00:12]} 40. cxb6 {[%emt 0:00:36]} axb6 {[%emt 0:00:02]} 41. Nxe4 {[%emt 0:00:09]} fxe4 {[%emt 0:00:43]} 42. Qe3 {[%emt 0:00:29]} Qc4 {[%emt 0:00:59]} 43. Ra8 {[%emt 0:01:32]} Qxb4 {[%emt 0:02:04]} 44. Bc3 {[%emt 0:00:18]} Qxc3 {[%emt 0:00:57]} 45. Qxc3 {[%emt 0:00:34]} Bxd4+ {[%emt 0:00:05]} 46. Qxd4 {[%emt 0:00:30]} Rxd4 {[%emt 0:00:02]} 47. Rc8 {[%emt 0:00:25]} Rd6 {[%emt 0:00:38]} 48. Rc7+ {[%emt 0:00:13]} Kg8 {[%emt 0:00:22]} 49. Ra2 {[%emt 0:00:02]} Be8 {[%emt 0:04:56]} 50. Ra8 {[%emt 0:00:37]} Kf8 {[%emt 0:00:22]} 51. Rcc8 {[%emt 0:00:10]} e3 {[%emt 0:00:28]} 52. Rxe8+ {[%emt 0:00:29]} Kf7 {[%emt 0:00:10]} 53. Kf1 {[%emt 0:00:24]} 1-0